bitfinex-derivatives/quotes_BTCF0:USTF0_20250823
["timestamp","ask_amount","ask_price","bid_price","bid_amount"]
[1755938128694,1.59097442,115760.0,115750.0,1.14848944]
[1755938130493,1.21035483,115760.0,115750.0,1.14848944]
[1755938130687,1.59097442,115760.0,115750.0,1.14848944]
[1755938130888,1.59097442,115760.0,115750.0,1.25740001]
[1755938131890,1.59097442,115760.0,115750.0,1.24396858]
[1755938132095,1.59097442,115760.0,115750.0,1.25747732]
[1755938132791,1.59097442,115760.0,115750.0,1.14856675]
[1755938135100,1.21035483,115760.0,115750.0,1.14856675]
[1755938135298,1.59097442,115760.0,115750.0,1.14856675]
[1755938135497,1.20192538,115760.0,115750.0,1.14856675]
[1755938136600,1.11551028,115760.0,115750.0,1.14856675]
[1755938137500,0.75471028,115760.0,115750.0,1.14856675]
[1755938138097,0.75471028,115760.0,115750.0,1.14856647]
[1755938141001,0.75471028,115760.0,115750.0,1.12492646]
[1755938141200,0.75471028,115760.0,115750.0,1.14856571]
[1755938142606,0.75471028,115760.0,115750.0,1.13505735]
[1755938143506,0.75471028,115760.0,115750.0,1.14856571]
[1755938153312,0.75471028,115760.0,115750.0,1.12492608]
[1755938153511,0.75471028,115760.0,115750.0,1.14856571]
[1755938155512,0.75471028,115760.0,115750.0,1.25747378]
[1755938156715,0.75471028,115760.0,115750.0,1.14856571]
[1755938157515,0.75471028,115760.0,115750.0,1.13094998]
[1755938158014,0.75471028,115760.0,115750.0,1.23985805]
[1755938159516,0.75471028,115760.0,115750.0,1.21284133]
[1755938159714,0.75471028,115760.0,115750.0,1.23985805]
[1755938162815,0.75471028,115760.0,115750.0,1.22634969]
[1755938163612,0.75471028,115760.0,115750.0,1.23985805]
[1755938167018,0.75471028,115760.0,115750.0,0.85923846]
[1755938167218,0.75471028,115760.0,115750.0,1.23985805]
[1755938167513,0.75471028,115760.0,115750.0,1.13094998]
[1755938167715,0.75471028,115760.0,115750.0,1.09380199]
[1755938167912,0.75471028,115760.0,115750.0,1.23988136]
[1755938170817,0.75471028,115760.0,115750.0,1.13094998]
[1755938174630,0.03952495,115760.0,115750.0,1.13094998]
[1755938174830,0.80312,115760.0,115750.0,1.13094998]
[1755938175637,0.84701359,115760.0,115750.0,1.13094998]
[1755938176636,0.84701359,115760.0,115750.0,1.23987953]
[1755938177128,0.84701359,115760.0,115750.0,1.23987947]
[1755938179238,0.84701359,115760.0,115750.0,0.85925988]
[1755938179438,0.84701359,115760.0,115750.0,1.23987947]
[1755938180439,0.04389359,115760.0,115750.0,1.23987947]
[1755938180629,0.80288,115760.0,115750.0,1.13094992]
[1755938181738,0.7944508,115760.0,115750.0,1.28585149]
[1755938182738,0.7944508,115760.0,115750.0,1.27234315]
[1755938182933,0.83780837,115760.0,115750.0,1.27234315]
[1755938183636,0.83780837,115760.0,115750.0,1.11744158]
[1755938183840,0.83780837,115760.0,115750.0,1.13094992]
[1755938184839,0.83780837,115760.0,115750.0,1.23987662]
[1755938185334,0.83780837,115760.0,115750.0,1.3176814]
[1755938185532,0.83780837,115760.0,115750.0,1.2087547]
[1755938186438,0.83780837,115760.0,115750.0,1.20875465]
[1755938190241,0.83780837,115760.0,115750.0,1.13094987]
[1755938192337,0.83780837,115760.0,115750.0,1.10393323]
[1755938192546,0.83780837,115760.0,115750.0,1.13094987]
[1755938195343,0.83780837,115760.0,115750.0,1.11744155]
[1755938195648,0.83780837,115760.0,115750.0,1.13094987]
[1755938200752,0.83780837,115760.0,115750.0,1.49174987]
[1755938201053,0.83780837,115760.0,115750.0,1.11113028]
[1755938201248,0.83780837,115760.0,115750.0,1.49174969]
[1755938202162,0.83780837,115760.0,115750.0,1.1111301]
[1755938202350,0.83780837,115760.0,115750.0,1.49174969]
[1755938203053,0.83780837,115760.0,115750.0,1.1111301]
[1755938203456,0.83780837,115760.0,115750.0,1.49174969]
[1755938204457,0.83780837,115760.0,115750.0,1.46811031]
[1755938204650,0.83780837,115760.0,115750.0,1.49174921]
[1755938206361,0.83780837,115760.0,115750.0,1.11112962]
[1755938206560,0.83780837,115760.0,115750.0,1.49174921]
[1755938206856,0.83780837,115760.0,115750.0,1.47824113]
[1755938207759,0.83780837,115760.0,115750.0,1.49174921]
[1755938208762,0.04335757,115760.0,115750.0,2.29374921]
[1755938208961,1.3366995,115770.0,115760.0,0.1357451]
[1755938209158,1.3366995,115770.0,115760.0,0.73510755]
[1755938209458,1.3798048,115770.0,115760.0,0.73510755]
[1755938210060,1.00018521,115770.0,115760.0,0.73510755]
[1755938210256,1.3818048,115770.0,115760.0,0.73510755]
[1755938211259,1.3818048,115770.0,115760.0,0.35448796]
[1755938211464,1.3818048,115770.0,115760.0,0.73510755]
[1755938212862,1.00118521,115770.0,115760.0,0.73510755]
[1755938213063,1.3818048,115770.0,115760.0,0.73510755]
[1755938213657,1.3818048,115770.0,115760.0,0.72159947]
[1755938213865,1.00118521,115770.0,115760.0,0.73510755]
[1755938214062,1.3818048,115770.0,115760.0,0.73510755]
[1755938214663,1.00118521,115770.0,115760.0,0.73510755]
[1755938214856,1.3818048,115770.0,115760.0,0.73510755]
[1755938219464,1.3818048,115770.0,115760.0,0.35448796]
[1755938219667,1.3818048,115770.0,115760.0,0.81290374]
[1755938219968,1.3818048,115770.0,115760.0,0.7039881]
[1755938220163,1.3756548,115770.0,115760.0,0.7039881]
[1755938220661,1.3756548,115770.0,115760.0,0.32336851]
[1755938221071,1.3626248,115770.0,115760.0,0.32336851]
[1755938221262,1.3626248,115770.0,115760.0,0.30986043]
[1755938221462,1.3626248,115770.0,115760.0,0.32336851]
[1755938223272,1.3626248,115770.0,115760.0,0.24557232]
[1755938224173,0.98200521,115770.0,115760.0,0.24557232]
[1755938224467,1.7234248,115770.0,115760.0,0.15709232]
[1755938224666,1.7234248,115770.0,115760.0,0.11494525]
[1755938224867,1.9734248,115770.0,115760.0,0.11494525]
[1755938225068,1.9734248,115770.0,115760.0,0.10481487]
[1755938225267,1.9734248,115770.0,115760.0,0.11494648]
[1755938226872,1.9734248,115770.0,115760.0,0.13917648]
[1755938227674,1.9734248,115770.0,115760.0,0.17029409]
[1755938228061,1.9734248,115770.0,115760.0,0.06137845]
[1755938231158,1.9734248,115770.0,115760.0,0.05124774]
[1755938231363,1.9734248,115770.0,115760.0,0.07488826]
[1755938231567,1.9734248,115770.0,115760.0,0.16130336]
[1755938232878,1.9734248,115770.0,115760.0,0.19397336]
[1755938233066,1.9734248,115770.0,115760.0,0.22687336]
[1755938234975,1.59280521,115770.0,115760.0,0.22687336]
[1755938235378,1.9734248,115770.0,115760.0,0.22687336]
[1755938236071,1.9734248,115770.0,115760.0,0.319619]
[1755938236277,1.9734248,115770.0,115760.0,0.366919]
[1755938236680,1.9734248,115770.0,115760.0,0.44468505]
[1755938236976,1.9734248,115770.0,115760.0,0.33576941]
[1755938237282,1.9734248,115770.0,115760.0,0.33576939]
[1755938237471,1.1714248,115770.0,115760.0,0.33576939]
[1755938237778,1.9730248,115770.0,115760.0,0.33576939]
[1755938239886,1.59240521,115770.0,115760.0,0.33576939]
[1755938240073,1.9730248,115770.0,115760.0,0.33576939]
[1755938240276,1.9730248,115770.0,115760.0,0.32226053]
[1755938240486,1.9730248,115770.0,115760.0,0.33576936]
[1755938241277,1.59240521,115770.0,115760.0,0.33576936]
[1755938241477,1.9730248,115770.0,115760.0,0.33576936]
[1755938243589,1.6122248,115770.0,115760.0,0.33576936]
[1755938243785,1.9730248,115770.0,115760.0,0.33576936]
[1755938246789,1.9730248,115770.0,115760.0,0.25800331]
[1755938247180,1.9730248,115770.0,115760.0,0.36691895]
[1755938248989,1.9730248,115770.0,115760.0,0.44469441]
[1755938249189,1.9730248,115770.0,115760.0,0.33577877]
[1755938249581,1.9730248,115770.0,115760.0,0.29862943]
[1755938249782,1.9730248,115770.0,115760.0,0.3357778]
[1755938249982,1.34240521,115770.0,115760.0,0.3357778]
[1755938250378,1.7230248,115770.0,115760.0,0.3357778]
[1755938250584,1.7230248,115770.0,115760.0,0.25800234]
[1755938251585,1.7230248,115770.0,115760.0,0.63743193]
[1755938251785,1.34240471,115770.0,115760.0,0.63743193]
[1755938252291,1.34224471,115770.0,115760.0,0.63743193]
[1755938252586,1.25583711,115770.0,115760.0,0.63743193]
[1755938252786,1.25583711,115770.0,115760.0,0.6374315]
[1755938253290,1.34224471,115770.0,115760.0,0.75681191]
[1755938253490,1.34224471,115770.0,115760.0,1.1374315]
[1755938253694,1.7228643,115770.0,115760.0,1.1374315]
[1755938253891,1.34224471,115770.0,115760.0,1.1374315]
[1755938254283,1.7228643,115770.0,115760.0,1.1374315]
[1755938254793,0.89503711,115770.0,115760.0,1.1374315]
[1755938255090,0.89503711,115770.0,115760.0,1.21520696]
[1755938255688,0.89503711,115770.0,115760.0,1.1374315]
[1755938255887,0.89503711,115770.0,115760.0,1.21521012]
[1755938256190,0.89503711,115770.0,115760.0,1.1374315]
[1755938256384,0.89503711,115770.0,115760.0,1.21520678]
[1755938256778,0.89503711,115770.0,115760.0,1.21520628]
[1755938257584,0.98144471,115770.0,115760.0,1.21520628]
[1755938257780,1.3620643,115770.0,115760.0,1.21520628]
[1755938258187,0.98144471,115770.0,115760.0,1.21520628]
[1755938258389,0.98044471,115770.0,115760.0,1.1374315]
[1755938258695,0.98044471,115770.0,115760.0,1.11379206]
[1755938258895,0.97944471,115770.0,115760.0,1.1374305]
[1755938259393,1.3600643,115770.0,115760.0,1.1374305]
[1755938259896,1.3600643,115770.0,115760.0,1.21519773]
[1755938260393,1.3600643,115770.0,115760.0,0.83457814]
[1755938260593,1.3600643,115770.0,115760.0,1.21519773]
[1755938261293,1.3610643,115770.0,115760.0,1.21519773]
[1755938261591,1.3610643,115770.0,115760.0,0.83457814]
[1755938261788,1.3610643,115770.0,115760.0,1.21519773]
[1755938261994,0.89391711,115770.0,115760.0,1.21519773]
[1755938262290,0.89491711,115770.0,115760.0,1.21519773]
[1755938262490,0.89491711,115770.0,115760.0,0.83457814]
[1755938262690,0.89491711,115770.0,115760.0,1.21519773]
[1755938264089,0.89491711,115770.0,115760.0,1.24634614]
[1755938264485,0.89391711,115770.0,115760.0,1.24634614]
[1755938264682,0.89291711,115770.0,115760.0,1.24634614]
[1755938267094,0.97932471,115770.0,115760.0,0.86572655]
[1755938267293,0.97932471,115770.0,115760.0,1.24634614]
[1755938267897,0.97932471,115770.0,115760.0,1.2091992]
[1755938268087,0.97932471,115770.0,115760.0,1.2463459]
[1755938272000,1.3599443,115770.0,115760.0,1.2463459]
[1755938273199,0.97932471,115770.0,115760.0,1.2463459]
[1755938278994,0.89291711,115770.0,115760.0,1.2463459]
[1755938279192,0.89291711,115770.0,115760.0,1.21520957]
[1755938279399,0.77621132,115770.0,115760.0,1.21520957]
[1755938279601,0.77621132,115770.0,115760.0,1.13743026]
[1755938280002,0.81263737,115770.0,115760.0,1.13743026]
[1755938281102,0.88240341,115770.0,115760.0,1.13743026]
[1755938282204,0.88240341,115770.0,115760.0,1.13742975]
[1755938283606,0.88240341,115770.0,115760.0,0.75681016]
[1755938283904,0.88240341,115770.0,115760.0,1.13742975]
[1755938285300,0.88240341,115770.0,115760.0,1.13742946]
[1755938286906,0.88240341,115770.0,115760.0,1.24629715]
[1755938287214,0.88240341,115770.0,115760.0,1.13742946]
[1755938288402,0.88240341,115770.0,115760.0,1.13742944]
[1755938289115,0.96881101,115770.0,115760.0,1.13742944]
[1755938289908,0.96881101,115770.0,115760.0,1.24629177]
[1755938290109,0.96881101,115770.0,115760.0,0.86567218]
[1755938290512,1.3494306,115770.0,115760.0,1.24629177]
[1755938291914,1.3494306,115770.0,115760.0,0.86567218]
[1755938292107,0.96881101,115770.0,115760.0,1.24629177]
[1755938292405,1.3494306,115770.0,115760.0,1.24629177]
[1755938292708,1.3494306,115770.0,115760.0,0.86567218]
[1755938292906,1.3494306,115770.0,115760.0,1.24629177]
[1755938294108,1.3494306,115770.0,115760.0,1.21458177]
[1755938294515,1.3494306,115770.0,115760.0,0.86750211]
[1755938294904,0.96881101,115770.0,115760.0,0.86750211]
[1755938295411,1.3494306,115770.0,115760.0,0.86750211]
[1755938296115,0.96881101,115770.0,115760.0,0.86750211]
[1755938296411,1.3494306,115770.0,115760.0,1.2481217]
[1755938296815,1.3494306,115770.0,115760.0,1.13925937]
[1755938297919,1.3494306,115770.0,115760.0,1.24812264]
[1755938298307,1.3494306,115770.0,115760.0,0.75863978]
[1755938298505,1.3494306,115770.0,115760.0,1.13925937]
[1755938298810,1.3494306,115770.0,115760.0,0.75863978]
[1755938299008,1.3494306,115770.0,115760.0,1.13925937]
[1755938299714,1.3494306,115770.0,115760.0,1.24812547]
[1755938300108,1.23272517,115770.0,115760.0,0.75863978]
[1755938300309,1.23272517,115770.0,115760.0,1.13925937]
[1755938301014,0.85210558,115770.0,115760.0,1.13925937]
[1755938301217,1.23272517,115770.0,115760.0,1.13925937]
[1755938303120,0.85210558,115770.0,115760.0,1.24813276]
[1755938303415,0.85210558,115770.0,115760.0,1.23800209]
[1755938303616,1.23272517,115770.0,115760.0,1.24813276]
[1755938303817,1.23272517,115770.0,115760.0,0.86751317]
[1755938304014,1.23272517,115770.0,115760.0,0.74755807]
[1755938304217,1.23272517,115770.0,115760.0,0.86751319]
[1755938304218,1.59352517,115770.0,115760.0,0.86751319]
[1755938306418,1.21290558,115770.0,115760.0,0.86751319]
[1755938306619,1.59352517,115770.0,115760.0,0.86751354]
[1755938308017,1.59352517,115770.0,115760.0,1.24813313]
[1755938308223,1.59352517,115770.0,115760.0,0.86751354]
[1755938308417,1.59352517,115770.0,115760.0,1.24813313]
[1755938308616,1.59352517,115770.0,115760.0,1.13925974]
[1755938309023,1.21290558,115770.0,115760.0,1.13925974]
[1755938309216,1.59352517,115770.0,115760.0,1.13925974]
[1755938309621,1.59352517,115770.0,115760.0,1.1392607]
[1755938309822,1.21290558,115770.0,115760.0,1.1392607]
[1755938310123,1.59352517,115770.0,115760.0,1.1392607]
[1755938310926,1.59352517,115770.0,115760.0,0.75864111]
[1755938311125,1.59352517,115770.0,115760.0,1.1392607]
[1755938312522,1.59352517,115770.0,115760.0,1.12912966]
[1755938312729,1.59352517,115770.0,115760.0,1.1392607]
[1755938314328,1.21290558,115770.0,115760.0,1.1392607]
[1755938314520,1.59352517,115770.0,115760.0,1.1392607]
[1755938317629,1.21290558,115770.0,115760.0,1.1392607]
[1755938318229,1.59352517,115770.0,115760.0,1.24813409]
[1755938319331,1.21290558,115770.0,115760.0,1.24813409]
[1755938319517,1.59352517,115770.0,115760.0,1.24813409]
[1755938321229,1.21290558,115770.0,115760.0,1.24813409]
[1755938321530,1.59352517,115770.0,115760.0,1.24813409]
[1755938321725,1.59352517,115770.0,115760.0,1.23800305]
[1755938321931,1.59352517,115770.0,115760.0,1.24813409]
[1755938322925,1.21290558,115770.0,115760.0,1.24813409]
[1755938323127,1.59352517,115770.0,115760.0,1.24813409]
[1755938325631,1.59352517,115770.0,115760.0,0.8675145]
[1755938325828,1.59352517,115770.0,115760.0,1.24813409]
[1755938326232,1.21290558,115770.0,115760.0,1.24813409]
[1755938326531,1.59352517,115770.0,115760.0,0.8675145]
[1755938326732,1.59352517,115770.0,115760.0,1.24813409]
[1755938328223,1.59352517,115770.0,115760.0,0.8675145]
[1755938328423,1.59352517,115770.0,115760.0,1.24813409]
[1755938330334,1.59352517,115770.0,115760.0,0.8675145]
[1755938330531,1.59352517,115770.0,115760.0,1.24813409]
[1755938330838,1.59352517,115770.0,115760.0,0.75864111]
[1755938331028,1.59352517,115770.0,115760.0,0.73500202]
[1755938331229,1.59352517,115770.0,115760.0,0.75864111]
[1755938331836,1.59352517,115770.0,115760.0,1.1392607]
[1755938332235,1.59352517,115770.0,115760.0,0.8675145]
[1755938332936,1.59352517,115770.0,115760.0,1.24813409]
[1755938333630,1.21290558,115770.0,115760.0,1.24813409]
[1755938334030,1.59352517,115770.0,115760.0,1.24813409]
[1755938334238,1.59352517,115770.0,115760.0,1.2481341]
[1755938334435,1.21290558,115770.0,115760.0,1.2481341]
[1755938334633,1.59352517,115770.0,115760.0,1.2481341]
[1755938339040,1.59352517,115770.0,115760.0,1.13926071]
[1755938339241,1.23272517,115770.0,115760.0,1.13926071]
[1755938339841,0.76569798,115770.0,115760.0,1.2481341]
[1755938340235,0.76569798,115770.0,115760.0,1.224495]
[1755938340441,0.76569798,115770.0,115760.0,1.24813224]
[1755938341842,0.76569798,115770.0,115760.0,1.34813224]
[1755938342540,2.32781879,115790.0,115780.0,0.2045701]
[1755938342742,3.21601272,115790.0,115780.0,0.70011033]
[1755938342944,3.24735195,115790.0,115780.0,0.70010847]
[1755938343546,1.36673236,115790.0,115780.0,0.70010847]
[1755938343739,1.28433316,115790.0,115780.0,0.70010847]
[1755938343938,1.28433316,115790.0,115780.0,0.6088276]
[1755938344336,1.28033316,115790.0,115780.0,0.6088276]
[1755938344537,1.28233316,115790.0,115780.0,0.6088276]
[1755938344742,1.28233316,115790.0,115780.0,0.71770099]
[1755938344945,1.28233316,115790.0,115780.0,0.73120701]
[1755938345444,1.28233316,115790.0,115780.0,1.23120701]
[1755938346446,1.36872586,115790.0,115780.0,1.23120701]
[1755938346636,1.74934545,115790.0,115780.0,1.23120701]
[1755938347140,1.74934545,115790.0,115780.0,0.85058742]
[1755938347341,1.74934545,115790.0,115780.0,1.23120701]
[1755938347544,1.74934545,115790.0,115780.0,1.12233362]
[1755938348548,1.74934545,115790.0,115780.0,1.11220173]
[1755938348748,1.74934545,115790.0,115780.0,1.12233125]
[1755938352158,1.36872586,115790.0,115780.0,1.12233125]
[1755938352349,1.74934545,115790.0,115780.0,1.12233125]
[1755938355756,1.74934545,115790.0,115780.0,1.23120464]
[1755938356552,1.74934545,115790.0,115780.0,0.85058505]
[1755938356956,1.74934545,115790.0,115780.0,1.23120464]
[1755938357661,1.74934545,115790.0,115780.0,1.21769862]
[1755938357866,1.74934545,115790.0,115780.0,1.23120387]
[1755938358255,1.74934545,115790.0,115780.0,1.21769813]
[1755938358454,1.74934545,115790.0,115780.0,1.23120387]
[1755938359966,1.36872586,115790.0,115780.0,1.23120387]
[1755938360159,1.74934545,115790.0,115780.0,1.23120387]
[1755938360966,1.74934545,115790.0,115780.0,1.12233048]
[1755938362071,1.74934545,115790.0,115780.0,1.12233047]
[1755938362970,1.74934545,115790.0,115780.0,1.19998224]
[1755938364267,1.74934545,115790.0,115780.0,0.81936265]
[1755938364472,1.74934545,115790.0,115780.0,1.19998224]
[1755938366068,1.36872586,115790.0,115780.0,1.12233047]
[1755938366268,1.74834545,115790.0,115780.0,1.12233047]
[1755938366469,1.74834545,115790.0,115780.0,1.19998224]
[1755938366873,1.74734545,115790.0,115780.0,1.19998224]
[1755938367073,1.74734545,115790.0,115780.0,1.1864765]
[1755938367269,1.74734545,115790.0,115780.0,1.19998224]
[1755938368178,1.36672586,115790.0,115780.0,1.19998224]
[1755938368364,1.74734545,115790.0,115780.0,1.19998224]
[1755938370783,1.36672586,115790.0,115780.0,1.19998224]
[1755938375481,1.36672586,115790.0,115780.0,1.30885563]
[1755938375683,1.36672586,115790.0,115780.0,1.23120386]
[1755938375884,1.36604586,115790.0,115780.0,1.23120386]
[1755938377478,1.36604586,115790.0,115780.0,0.85058427]
[1755938377682,1.36604586,115790.0,115780.0,1.23120386]
[1755938383187,1.36604586,115790.0,115780.0,1.23120384]
[1755938384388,1.36604586,115790.0,115780.0,1.30899028]
[1755938384782,1.36604586,115790.0,115780.0,1.20011689]
[1755938385488,1.36604586,115790.0,115780.0,1.16297613]
[1755938385690,1.36604586,115790.0,115780.0,1.12233042]
[1755938389391,1.36604586,115790.0,115780.0,0.74171083]
[1755938389693,1.36604586,115790.0,115780.0,1.12233042]
[1755938394296,1.36604586,115790.0,115780.0,1.23120381]
[1755938394797,1.36604586,115790.0,115780.0,1.19406308]
[1755938394998,1.36604586,115790.0,115780.0,1.2312037]
[1755938397500,1.36604586,115790.0,115780.0,1.12233031]
[1755938398098,1.36604586,115790.0,115780.0,1.23124018]
[1755938400693,1.36604586,115790.0,115780.0,0.85062059]
[1755938401004,1.36604586,115790.0,115780.0,1.23124018]
[1755938402102,1.36604586,115790.0,115780.0,0.85062059]
[1755938402401,1.36604586,115790.0,115780.0,1.23124018]
[1755938402897,1.36604586,115790.0,115780.0,1.20422882]
[1755938403102,1.36604586,115790.0,115780.0,1.23124018]
[1755938403502,1.24935671,115790.0,115780.0,1.23124018]
[1755938404201,0.08053,115820.0,115810.0,0.171408]
[1755938404404,0.03299,115830.0,115820.0,0.1245706]
[1755938404605,0.85666,115830.0,115820.0,0.96890513]
[1755938404906,0.83438,115830.0,115820.0,0.96890513]
[1755938405096,0.86978898,115830.0,115820.0,0.96890513]
[1755938405495,0.07086898,115830.0,115820.0,1.46890513]
[1755938405898,0.06375898,115830.0,115820.0,1.46890513]
[1755938406103,0.06375898,115830.0,115820.0,1.46889559]
[1755938406505,0.04383327,115830.0,115820.0,1.46889559]
[1755938406701,0.82504108,115840.0,115830.0,0.1245631]
[1755938406909,0.82504108,115840.0,115830.0,1.07775397]
[1755938407406,0.89502062,115840.0,115830.0,1.07775397]
[1755938407906,0.89702062,115840.0,115830.0,1.07775397]
[1755938409000,0.82704108,115840.0,115830.0,1.07775397]
[1755938409206,0.82704108,115840.0,115830.0,0.96888809]
[1755938409400,0.86922798,115840.0,115830.0,1.0882685]
[1755938409605,1.33620317,115840.0,115830.0,1.0558185]
[1755938409807,1.33620317,115840.0,115830.0,1.49821345]
[1755938410008,1.33620317,115840.0,115830.0,1.11759386]
[1755938410307,1.33620317,115840.0,115830.0,1.0558185]
[1755938410506,1.33620317,115840.0,115830.0,1.0882685]
[1755938411807,0.95558358,115840.0,115830.0,1.0558185]
[1755938412107,1.40566456,115840.0,115830.0,1.18363417]
[1755938412299,1.40566456,115840.0,115830.0,1.19703946]
[1755938412698,1.40566456,115840.0,115830.0,1.19703641]
[1755938413405,1.40566456,115840.0,115830.0,1.577656]
[1755938413806,1.40566456,115840.0,115830.0,1.46879012]
[1755938414702,1.02504497,115840.0,115830.0,1.46879012]
[1755938415204,1.40566456,115840.0,115830.0,1.46879012]
[1755938415400,1.40566456,115840.0,115830.0,1.577656]
[1755938416009,1.40566456,115840.0,115830.0,1.19703641]
[1755938416214,1.40566456,115840.0,115830.0,1.577656]
[1755938416906,1.40566456,115840.0,115830.0,1.19703641]
[1755938417104,1.40566456,115840.0,115830.0,1.577656]
[1755938417908,1.02504497,115840.0,115830.0,1.577656]
[1755938418212,1.40566456,115840.0,115830.0,1.46878178]
[1755938418812,1.33620317,115840.0,115830.0,1.46878178]
[1755938419311,0.95558358,115840.0,115830.0,1.46878178]
[1755938419513,1.33620317,115840.0,115830.0,1.46878178]
[1755938421206,1.40399974,115840.0,115830.0,1.45865659]
[1755938421413,1.40399974,115840.0,115830.0,1.46878264]
[1755938421611,1.31764414,115840.0,115830.0,1.46878307]
[1755938422214,1.31764414,115840.0,115830.0,1.44526269]
[1755938422413,1.31764414,115840.0,115830.0,1.46878426]
[1755938422806,0.94146455,115840.0,115830.0,1.46878426]
[1755938423007,1.32208414,115840.0,115830.0,1.46878426]
[1755938424311,1.32208414,115840.0,115830.0,1.54654509]
[1755938424512,1.32208414,115840.0,115830.0,1.54654877]
[1755938425519,0.94146455,115840.0,115830.0,1.54654877]
[1755938427023,1.02782025,115840.0,115830.0,1.54654877]
[1755938427624,1.02782025,115840.0,115830.0,1.54655813]
[1755938428925,1.40843984,115840.0,115830.0,1.54655813]
[1755938430030,1.40843984,115840.0,115830.0,1.4687973]
[1755938430520,1.40843984,115840.0,115830.0,1.52302364]
[1755938430724,1.40843984,115840.0,115830.0,1.46880792]
[1755938431321,1.40843984,115840.0,115830.0,1.54656887]
[1755938432020,1.40843984,115840.0,115830.0,1.46880792]
[1755938432221,1.40843984,115840.0,115830.0,1.08818833]
[1755938432421,1.40843984,115840.0,115830.0,1.46880792]
[1755938432927,1.40843984,115840.0,115830.0,1.54656877]
[1755938433619,1.40843984,115840.0,115830.0,1.46880792]
[1755938433817,1.40843984,115840.0,115830.0,1.08818833]
[1755938435932,1.02782025,115840.0,115830.0,1.16594896]
[1755938436125,1.40843984,115840.0,115830.0,1.16594896]
[1755938436729,1.40843984,115840.0,115830.0,1.16594899]
[1755938439736,1.02782025,115840.0,115830.0,1.14240373]
[1755938439939,1.40843984,115840.0,115830.0,1.16537718]
[1755938440332,1.02782025,115840.0,115830.0,1.15525183]
[1755938440637,1.40843984,115840.0,115830.0,1.16537718]
[1755938442141,1.02782025,115840.0,115830.0,1.54599677]
[1755938442443,1.40843984,115840.0,115830.0,1.54599677]
[1755938442637,1.40843984,115840.0,115830.0,1.54599318]
[1755938442838,1.40843984,115840.0,115830.0,1.46823614]
[1755938443441,1.40743984,115840.0,115830.0,1.55949355]
[1755938443642,1.40743984,115840.0,115830.0,1.4817366]
[1755938444442,1.40643984,115840.0,115830.0,1.4817366]
[1755938447044,1.40643984,115840.0,115830.0,1.59060248]
[1755938448845,1.40643984,115840.0,115830.0,1.58047713]
[1755938449042,1.40643984,115840.0,115830.0,1.59060206]
[1755938449440,1.40643984,115840.0,115830.0,1.45876315]
[1755938449646,1.40643984,115840.0,115830.0,1.48173618]
[1755938449844,1.40643984,115840.0,115830.0,1.10111659]
[1755938450146,1.40643984,115840.0,115830.0,1.48173618]
[1755938450445,1.02138025,115840.0,115830.0,1.48173618]
[1755938451746,1.40199984,115840.0,115830.0,1.48173618]
[1755938451943,1.40199984,115840.0,115830.0,1.59060206]
[1755938452145,1.40199984,115840.0,115830.0,1.59060207]
[1755938453347,0.93642455,115840.0,115830.0,1.59060207]
[1755938453544,0.85917798,115840.0,115830.0,1.55949257]
[1755938453747,0.06109798,115840.0,115830.0,2.52981619]
[1755938453947,0.06109798,115840.0,115830.0,2.73868108]
[1755938455042,0.06109798,115840.0,115830.0,2.6298152]
[1755938455350,0.06109798,115840.0,115830.0,2.738608]
[1755938455541,0.00349123,115840.0,115830.0,2.738608]
[1755938455742,0.802,115850.0,115840.0,0.2113557]
[1755938455942,0.84875381,115850.0,115840.0,1.08450005]
[1755938456145,0.84596381,115850.0,115840.0,1.08450005]
[1755938456753,0.84875381,115850.0,115840.0,0.70388046]
[1755938457050,0.84875381,115850.0,115840.0,1.08450005]
[1755938457351,0.84696381,115850.0,115840.0,1.58450005]
[1755938457742,0.84796381,115850.0,115840.0,1.58450005]
[1755938458047,0.84796381,115850.0,115840.0,1.57165235]
[1755938458350,0.84796381,115850.0,115840.0,1.47572391]
[1755938458651,0.84796381,115850.0,115840.0,1.475721]
[1755938458945,0.85075381,115850.0,115840.0,1.5533196]
[1755938461046,0.85521381,115850.0,115840.0,1.5533196]
[1755938462052,0.85075381,115850.0,115840.0,1.17270001]
[1755938462254,0.84796381,115850.0,115840.0,1.5533196]
[1755938462553,0.85075381,115850.0,115840.0,1.5533196]
[1755938463657,0.84796381,115850.0,115840.0,1.5533196]
[1755938464048,0.85075381,115850.0,115840.0,1.5533196]
[1755938464248,0.85521381,115850.0,115840.0,1.17270001]
[1755938464548,0.85521381,115850.0,115840.0,1.5533196]
[1755938464850,0.85521381,115850.0,115840.0,1.09510141]
[1755938465053,0.85521381,115850.0,115840.0,1.475721]
[1755938466257,0.85521381,115850.0,115840.0,1.46559758]
[1755938466458,0.85521381,115850.0,115840.0,1.47570872]
[1755938467260,0.85075381,115850.0,115840.0,1.47570872]
[1755938468161,0.85075381,115850.0,115840.0,1.09508913]
[1755938468359,0.85521381,115850.0,115840.0,1.47570872]
[1755938468861,0.85521381,115850.0,115840.0,1.09508913]
[1755938469063,0.85521381,115850.0,115840.0,1.47570872]
[1755938469362,0.85867381,115850.0,115840.0,1.47569877]
[1755938472161,0.85867381,115850.0,115840.0,1.09507918]
[1755938472361,0.85867381,115850.0,115840.0,1.47569877]
[1755938472665,0.05667381,115850.0,115840.0,1.47569877]
[1755938472869,0.04596381,115850.0,115840.0,1.95631836]
[1755938473060,0.04596381,115850.0,115840.0,1.57569877]
[1755938475359,0.04596381,115850.0,115840.0,1.565577]
[1755938475561,0.04596381,115850.0,115840.0,1.57570001]
[1755938476064,0.04596381,115850.0,115840.0,1.9563196]
[1755938477166,0.04596381,115850.0,115840.0,1.19508042]
[1755938477367,0.04596381,115850.0,115840.0,1.9563196]
[1755938477569,0.04596381,115850.0,115840.0,1.57570001]
[1755938477969,0.04596381,115850.0,115840.0,1.9563196]
[1755938478567,0.04596381,115850.0,115840.0,1.95631908]
[1755938481357,0.00323793,115850.0,115840.0,1.95631908]
[1755938481564,0.002,115850.0,115840.0,1.95631908]
[1755938482664,0.002,115850.0,115840.0,1.96981601]
[1755938483770,0.002,115850.0,115840.0,1.20857683]
[1755938484070,0.002,115850.0,115840.0,1.96981601]
[1755938484566,0.04467604,115850.0,115840.0,1.94619638]
[1755938484762,0.04467604,115850.0,115840.0,1.96989145]
[1755938485164,0.04467604,115850.0,115840.0,1.20865227]
[1755938485366,0.04467604,115850.0,115840.0,1.58927453]
[1755938486966,0.04467604,115850.0,115840.0,1.96989412]
[1755938487672,0.04467604,115850.0,115840.0,2.07864375]
[1755938487863,0.04467604,115850.0,115840.0,1.31740457]
[1755938488063,0.04467604,115850.0,115840.0,2.07864375]
[1755938493872,0.04467604,115850.0,115840.0,2.04214451]
[1755938494074,0.47675029,115860.0,115850.0,0.2086881]
[1755938494276,0.47834029,115860.0,115850.0,1.0957428]
[1755938494472,0.47834029,115860.0,115850.0,1.09574314]
[1755938494880,0.00979,115860.0,115850.0,0.71512355]
[1755938495177,0.64120959,115860.0,115850.0,1.06259314]
[1755938495385,0.72914029,115860.0,115850.0,0.56459154]
[1755938495683,0.72914029,115860.0,115850.0,0.68408964]
[1755938495982,0.72914029,115860.0,115850.0,1.18408964]